fUSD/lending_fUSD_20260331
["ID","MTS","AMOUNT","RATE_DAILY","PERIOD"]
[419155520,1774961433731,-250.0,0.00014849,2]
[419155521,1774961433740,-250.0,0.00014849,2]
[419155522,1774961433750,-250.0,0.00014849,2]
[419155523,1774961433759,-250.0,0.00014849,2]
[419155524,1774961433768,-250.0,0.00014849,2]
[419155525,1774961433777,-250.0,0.00014849,2]
[419155526,1774961433786,-250.0,0.00014849,2]
[419155527,1774961433796,-250.0,0.00014849,2]
[419155528,1774961433806,-174.61919141,0.00014849,2]
[419155529,1774961433817,-262.90206542,0.00014849,2]
[419155530,1774961433828,-250.0,0.00014849,2]
[419155531,1774961433837,-250.0,0.00014849,2]
[419155532,1774961433847,-156.7948256,0.00014849,2]
[419155533,1774961433857,-743.50770149,0.00014849,2]
[419155534,1774961433868,-160.0,0.00014865,7]
[419155535,1774961433878,-174.099546,0.00014865,7]
[419155536,1774961433888,-188.199093,0.00014865,7]
[419155537,1774961433898,-166.66,0.00014866,2]
[419155538,1774961433909,-274.318553,0.00014897,7]
[419155539,1774961433920,-376.29822,0.00014897,7]
[419155540,1774961433929,-2000.0,0.00014901,2]
[419155541,1774961433939,-1438.09495884,0.00014902,2]
[419155542,1774961433948,-160.0,0.00014903,7]
[419155543,1774961433958,-202.004647,0.00014903,7]
[419155544,1774961433967,-244.009295,0.00014903,7]
[419155545,1774961433977,-500.0,0.00014904,2]
[419155546,1774961433987,-8354.08008296,0.00014904,2]
[419155547,1774961434001,-388.019697,0.00014904,2]
[419155548,1774961434013,-140.58873484,0.00014904,2]
[419155549,1774961434023,-151.0,0.00014904,2]
[419155550,1774961434032,-272.62944185,0.00014904,2]
[419155551,1774961434042,-51.51205033,0.0001491,2]
[419155552,1774961434054,-994.68708973,0.0001491,2]
[419155553,1774961434066,-1152.83533712,0.0001491,2]
[419155554,1774961434076,-1000.0,0.00014921,2]
[419155555,1774961434087,-151.0,0.00014921,2]
[419155556,1774961434097,-500.0,0.00014936,2]
[419155557,1774961434107,-500.0,0.00014936,2]
[419155558,1774961434117,-599.64507648,0.00014936,2]
[419155559,1774961434127,-500.0,0.00014936,2]
[419155560,1774961434136,-162.93763666,0.00014936,2]
[419155561,1774961434146,-255.0,0.00014937,2]
[419155562,1774961434157,-420.0,0.00014946,2]
[419155563,1774961434167,-500.0,0.00014959,2]
[419155564,1774961434177,-2009.32186805,0.00014959,2]
[419155565,1774961434189,-151.0,0.00014959,2]
[419155566,1774961434199,-282.71673119,0.00014959,2]
[419155567,1774961434209,-500.0,0.00014964,2]
[419155568,1774961434219,-500.0,0.00014964,2]
[419155569,1774961434229,-500.0,0.00014964,2]
[419155570,1774961434239,-500.0,0.00014964,2]
[419155571,1774961434248,-500.0,0.00014964,2]
[419155572,1774961434257,-500.0,0.00014964,2]
[419155573,1774961434266,-500.0,0.00014964,2]
[419155574,1774961434275,-500.0,0.00014964,2]
[419155575,1774961434284,-188.17961,0.00014994,7]
[419155576,1774961434294,-300.0,0.00015,2]
[419155577,1774961434303,-2000.0,0.00015001,2]
[419155578,1774961434312,-500.0,0.00015014,2]
[419155579,1774961434322,-151.0,0.00015014,2]
[419155580,1774961434332,-293.17725025,0.00015014,2]
[419155581,1774961434341,-222.9,0.00015068,2]
[419155582,1774961434351,-800.0,0.00015068,2]
[419155583,1774961434360,-500.0,0.00015069,2]
[419155584,1774961434369,-151.0,0.00015069,2]
[419155585,1774961434379,-304.02480851,0.00015069,2]
[419155586,1774961434388,-2000.0,0.00015101,2]
[419155587,1774961434399,-500.0,0.00015124,2]
[419155588,1774961434409,-151.0,0.00015124,2]
[419155589,1774961434418,-299.38223695,0.00015124,2]
[419155590,1774961434427,-352.0,0.00015127,2]
[419155591,1774961434437,-785.11,0.0001513,2]
[419155592,1774961434447,-725.0,0.00015138,3]
[419155593,1774961434456,-168.0,0.00015142,2]
[419155594,1774961434466,-151.0,0.00015169,2]
[419155595,1774961434475,-151.0,0.00015169,2]
[419155596,1774961434484,-151.0,0.00015169,2]
[419155597,1774961434495,-151.0,0.00015169,2]
[419155598,1774961434505,-500.0,0.00015179,2]
[419155599,1774961434516,-151.0,0.00015179,2]
[419155600,1774961434525,-151.0,0.00015201,2]
[419155601,1774961434535,-151.0,0.00015201,2]
[419155602,1774961434545,-151.0,0.00015201,2]
[419155603,1774961434556,-213.4385,0.00015201,2]
[419155604,1774961434565,-183.915706,0.00015201,2]
[419155605,1774961434576,-183.915706,0.00015201,2]
[419155606,1774961434586,-183.915706,0.00015201,2]
[419155607,1774961434597,-183.915706,0.00015201,2]
[419155608,1774961434607,-2000.0,0.00015201,2]
[419155609,1774961434618,-154.65190592,0.00015205,2]
[419155610,1774961434627,-151.0,0.00015207,2]
[419155611,1774961434636,-151.0,0.00015207,2]
[419155612,1774961434645,-159.372413,0.00015207,2]
[419155613,1774961434654,-352.0,0.00015207,2]
[419155614,1774961434664,-151.0,0.0001521,2]
[419155615,1774961434675,-1000.0,0.0001521,2]
[419155616,1774961434685,-1000.0,0.00015226,2]
[419155617,1774961434697,-777.76,0.00015226,2]
[419155618,1774961434707,-254.899475,0.00015226,2]
[419155619,1774961434718,-254.899475,0.00015226,2]
[419155620,1774961434728,-254.899475,0.00015226,2]
[419155621,1774961434737,-254.899475,0.00015226,2]
[419155622,1774961434747,-500.0,0.00015234,2]
[419155623,1774961434757,-151.0,0.00015234,2]
[419155624,1774961434766,-151.0,0.00015251,2]
[419155625,1774961434776,-151.0,0.00015251,2]
[419155626,1774961434785,-191.128468,0.00015251,2]
[419155627,1774961434795,-500.0,0.00015289,2]
[419155628,1774961434805,-151.0,0.00015289,2]
[419155629,1774961434815,-2000.0,0.00015301,2]
[419155630,1774961434827,-352.0,0.00015308,2]
[419155631,1774961434838,-500.0,0.00015309,2]
[419155632,1774961434849,-500.0,0.00015309,2]
[419155633,1774961434859,-396.61291239,0.0001531,2]
[419155634,1774961434868,-352.0,0.00015334,2]
[419155635,1774961434878,-10617.44517809,0.00015341,2]
[419155636,1774961434888,-500.0,0.00015344,2]
[419155637,1774961434898,-151.0,0.00015344,2]
[419155638,1774961434908,-246.07562606,0.00015353,2]
[419155639,1774961434919,-269.96529075,0.00015353,2]
[419155640,1774961434929,-500.0,0.00015359,2]
[419155641,1774961434939,-528.95985737,0.00015359,2]
[419155642,1774961434950,-1500.0,0.00015368,2]
[419155643,1774961434959,-200.0,0.00015397,2]
[419155644,1774961434968,-1328.27659266,0.00015397,2]
[419155645,1774961434977,-290.26104003,0.00015397,2]
[419155647,1774961434987,-181.08010149,0.00015397,2]
[419155648,1774961434996,-771.01748645,0.00015397,2]
[419155649,1774961435005,-500.0,0.00015399,2]
[419155650,1774961435015,-151.0,0.00015399,2]
[419155651,1774961435024,-2000.0,0.00015401,2]
[419155652,1774961435034,-785.11,0.00015404,2]
[419155653,1774961435043,-352.0,0.0001544,2]
[419155654,1774961435052,-2200.0,0.00015452,2]
[419155655,1774961435063,-1000.0,0.00015452,2]
[419155656,1774961435072,-1500.0,0.00015468,2]
[419155657,1774961435082,-1000.0,0.00015484,2]
[419155658,1774961435091,-2000.0,0.00015501,2]
[419155659,1774961435101,-900.53937168,0.00015512,2]
[419155660,1774961435114,-101.65112969,0.00015512,2]
[419155661,1774961435123,-1002.47852064,0.00015512,2]
[419155662,1774961435133,-1000.0,0.00015512,2]
[419155663,1774961435143,-1000.0,0.00015512,2]
[419155664,1774961435152,-500.0,0.00015512,2]
[419155665,1774961435162,-1081.45389944,0.00015512,2]
[419155666,1774961435172,-420.0,0.00015512,2]
[419155667,1774961435181,-151.0,0.00015519,2]
[419155668,1774961435191,-151.0,0.00015519,2]
[419155670,1774961435478,-151.0,0.00015519,2]
[419155671,1774961435506,-151.0,0.00015519,2]
[419155672,1774961435516,-193.573735,0.00015519,2]
[419155673,1774961435525,-352.0,0.00015527,2]
[419155674,1774961435535,-160.0,0.00015567,2]
[419155675,1774961435545,-1680.0,0.00015577,2]
[419155676,1774961435556,-2000.0,0.000156,2]
[419155677,1774961435566,-151.0,0.000156,2]
[419155678,1774961435575,-151.0,0.000156,2]
[419155679,1774961435584,-151.0,0.000156,2]
[419155680,1774961435594,-196.1413,0.000156,7]
[419155681,1774961435604,-2000.0,0.00015601,2]
[419155682,1774961435613,-166.66,0.00015641,2]
[419155683,1774961435622,-151.0,0.00015663,2]
[419155684,1774961435634,-151.0,0.00015663,2]
[419155685,1774961435643,-850.3231775,0.00015678,2]
[419155686,1774961435656,-51.3468225,0.00015678,2]
[419155687,1774961435666,-254.899475,0.00015678,2]
[419155688,1774961435675,-254.899475,0.00015678,2]
[419155689,1774961435684,-254.899475,0.00015678,2]
[419155690,1774961435693,-254.899475,0.00015678,2]
[419155691,1774961435703,-202.03479518,0.0001568,2]
[419155692,1774961435712,-151.0,0.0001568,2]
[419155693,1774961435722,-2000.0,0.00015701,2]
[419155694,1774961435731,-352.0,0.0001571,2]
[419155695,1774961435741,-151.0,0.00015717,2]
[419155696,1774961435751,-183.915706,0.00015717,2]
[419155697,1774961435761,-183.915706,0.00015717,2]
[419155698,1774961435770,-183.915706,0.00015717,2]
[419155699,1774961435779,-183.915706,0.00015717,2]
[419155700,1774961435789,-1571.0,0.0001572,2]
[419155701,1774961435798,-175.91330646,0.00015747,2]
[419155702,1774961435807,-740.9,0.00015753,2]
[419155703,1774961435816,-500.0,0.0001576,2]
[419155704,1774961435826,-500.0,0.0001576,2]
[419155705,1774961435835,-1081.00913188,0.00015761,2]
[419155707,1774961435851,-382.82685681,0.00015761,2]
[419155708,1774961435863,-702.36606411,0.00015761,2]
[419155709,1774961435875,-253.91423836,0.00015761,2]
[419155710,1774961435887,-952.0,0.00015761,2]
[419155711,1774961435898,-2892.35442139,0.00015761,2]
[419155712,1774961435914,-103209.72388314,0.00015761,2]
[419155713,1774961435926,-510.61,0.00015761,2]
[419155714,1774961435938,-297.35441822,0.00015761,2]
[419155715,1774961435949,-507.104,0.00015761,2]
[419155716,1774961435961,-11914.25004416,0.00015761,2]
[419155717,1774961435972,-4451.41049392,0.00015761,2]
[419155718,1774961435991,-2416.29731248,0.00015761,2]
[419155719,1774961436003,-280.72,0.00015761,2]
[419155720,1774961436014,-14509.76393067,0.00015761,2]
[419155721,1774961436026,-299.23478,0.00015761,2]
[419155722,1774961436037,-756.35463349,0.00015761,2]
[419155723,1774961436049,-2088.41628585,0.00015761,2]
[419155724,1774961436061,-1910.49157789,0.00015761,2]
[419155725,1774961436072,-6368.32208559,0.00015761,2]
[419155726,1774961436083,-987.95536,0.00015761,2]
[419155727,1774961436095,-869.66570832,0.00015761,2]
[419155728,1774961436112,-6656.3528631,0.00015761,2]
[419155729,1774961436123,-5707.44945277,0.00015761,2]
[419155730,1774961436135,-454.4361659,0.00015761,2]
[419155731,1774961436146,-20807.01776955,0.00015761,2]
[419155732,1774961436158,-12212.54101581,0.00015761,2]
[419155742,1774961438053,-1128.37587025,0.00015761,2]
[419155744,1774961438107,-874.22355268,0.00015761,2]
[419155745,1774961438118,-796.01445531,0.00015761,2]
[419155746,1774961438130,-4690.11688558,0.00015761,2]
[419155747,1774961438164,-202.03479519,0.0001568,2]
[419155748,1774961438174,-164053.95773647,0.00015761,2]
[419155749,1774961438185,-151.0,0.00015761,2]
[419155750,1774961438195,-156.546991,0.00015761,2]
[419155751,1774961438204,-151.0,0.00015761,2]
[419155752,1774961438214,-151.0,0.00015761,2]
[419155753,1774961438223,-151.0,0.00015761,2]
[419155754,1774961438232,-151.0,0.00015761,2]
[419155755,1774961438242,-151.0,0.00015761,2]
[419155756,1774961438251,-151.0,0.00015761,2]
[419155757,1774961438260,-151.0,0.00015761,2]
[419155758,1774961438270,-183.915706,0.00015761,2]
[419155759,1774961438280,-183.915706,0.00015761,2]
[419155760,1774961438290,-183.915706,0.00015761,2]
[419155761,1774961438300,-183.91571,0.00015761,2]
[419155762,1774961438310,-254.899475,0.00015761,2]
[419155763,1774961438320,-254.899475,0.00015761,2]
[419155764,1774961438330,-254.899475,0.00015761,2]
[419155765,1774961438340,-254.899475,0.00015761,2]
[419155766,1774961438349,-415.0,0.00015763,2]
[419155767,1774961438358,-500.0,0.00015773,2]
[419155768,1774961438368,-500.0,0.00015773,2]
[419155769,1774961438378,-500.0,0.00015773,2]
[419155770,1774961438388,-500.0,0.00015773,2]
[419155771,1774961438397,-500.0,0.00015773,2]
[419155772,1774961438407,-500.0,0.00015773,2]
[419155773,1774961438416,-500.0,0.00015773,2]
[419155774,1774961438425,-500.0,0.00015773,2]
[419155775,1774961438436,-502.82104144,0.00015773,2]
[419155776,1774961438447,-500.0,0.00015773,2]
[419155777,1774961438456,-500.0,0.00015773,2]
[419155778,1774961438467,-501.14424675,0.00015773,2]
[419155779,1774961438476,-285.70561794,0.00015773,2]
[419155781,1774961438485,-500.0,0.00015773,2]
[419155782,1774961438495,-500.0,0.00015773,2]
[419155783,1774961438506,-500.0,0.00015773,2]
[419155784,1774961438517,-500.0,0.00015773,2]
[419155785,1774961438528,-500.0,0.00015773,2]
[419155786,1774961438538,-500.0,0.00015773,2]
[419155787,1774961438550,-500.0,0.00015773,2]
[419155788,1774961438560,-500.0,0.00015773,2]
[419155789,1774961438569,-166.42241102,0.00015773,2]
[419155790,1774961438579,-490.42229162,0.00015773,2]
[419155791,1774961438589,-500.0,0.00015773,2]
[419155792,1774961438598,-500.0,0.00015773,2]
[419155793,1774961438608,-500.0,0.00015773,2]
[419155795,1774961438617,-352.0,0.00015778,2]
[419155797,1774961438626,-530.0,0.00015781,2]
[419155799,1774961438635,-150.62164298,0.000158,2]
[419155801,1774961438645,-2000.0,0.00015801,2]
[419155803,1774961438654,-725.0,0.00015814,4]
[419155805,1774961438664,-200.8,0.00015815,2]
[419155807,1774961438673,-352.0,0.00015839,2]
[419155809,1774961438683,-197.94127137,0.0001584,2]
[419155811,1774961438692,-2997.27992188,0.00015875,2]
[419155813,1774961438706,-2992.09560657,0.00015875,2]
[419155817,1774961438717,-2692.33929163,0.00015875,2]
[419155831,1774961438846,-1935.73035801,0.00015875,2]
[419155833,1774961438855,-168.0,0.00015899,2]
[419155835,1774961438864,-150.0,0.000159,2]
[419155837,1774961438874,-176.43732047,0.000159,2]
[419155838,1774961438884,-150.0,0.000159,2]
[419155840,1774961438893,-2000.0,0.00015901,2]
[419155842,1774961438902,-2000.0,0.00015916,2]
[419155843,1774961438912,-200.0,0.00015945,2]
[419155844,1774961438921,-1377.42282659,0.00015945,2]
[419155845,1774961438931,-164.62201122,0.00015945,2]
[419155846,1774961438940,-187.78006524,0.00015945,2]
[419155847,1774961438950,-807.90645319,0.00015945,2]
[419155848,1774961438960,-5000.0,0.0001596,2]
[419155849,1774961438970,-400.0,0.0001597,2]
[419155850,1774961438979,-500.4387024,0.0001597,2]
[419155851,1774961438989,-700.0,0.0001597,2]
[419155852,1774961438998,-700.0,0.0001597,2]
[419155853,1774961439008,-700.0,0.0001597,2]
[419155854,1774961439017,-700.0,0.0001597,2]
[419155856,1774961439027,-1054.65118905,0.0001597,2]
[419155857,1774961439036,-210.8072651,0.00015985,2]
[419155859,1774961439045,-208.38932499,0.00015989,2]
[419155861,1774961439054,-201.62297305,0.00015989,2]
[419155863,1774961439063,-155.0,0.00015999,2]
[419155865,1774961439073,-500.0,0.00015999,2]
[419155867,1774961439082,-500.0,0.00015999,2]
[419155869,1774961439091,-500.0,0.00015999,2]
[419155871,1774961439100,-500.0,0.00015999,2]
[419155873,1774961439110,-500.0,0.00015999,2]
[419155875,1774961439119,-500.0,0.00015999,2]
[419155877,1774961439128,-500.0,0.00015999,2]
[419155879,1774961439138,-500.0,0.00015999,2]
[419155881,1774961439147,-500.0,0.00015999,2]
[419155883,1774961439157,-292.680799,0.00015999,2]
[419155885,1774961439166,-151.0,0.00015999,2]
[419155887,1774961439175,-500.0,0.00015999,2]
[419155889,1774961439184,-500.0,0.00015999,2]
[419155891,1774961439193,-500.0,0.00015999,2]
[419155892,1774961439203,-500.0,0.00015999,2]
[419155894,1774961439212,-151.0,0.00015999,2]
[419155896,1774961439221,-500.0,0.00015999,2]
[419155898,1774961439231,-500.0,0.00015999,2]
[419155900,1774961439241,-500.0,0.00015999,2]
[419155902,1774961439250,-500.0,0.00015999,2]
[419155904,1774961439259,-254.0,0.00015999,2]
[419155906,1774961439268,-254.899475,0.00015999,2]
[419155908,1774961439278,-254.899475,0.00015999,2]
[419155910,1774961439287,-254.899475,0.00015999,2]
[419155912,1774961439296,-254.899467,0.00015999,2]
[419155914,1774961439305,-93222.77013848,0.00016,2]
[419155916,1774961439317,-3800.55334224,0.00016,2]
[419155919,1774961439329,-3494.11304809,0.00016,2]
[419155921,1774961439339,-14421.79513231,0.00016,2]
[419155923,1774961439351,-1497.16679435,0.00016,2]
[419155925,1774961439362,-748.26893567,0.00016,2]
[419155927,1774961439373,-729.95647006,0.00016,2]
[419155930,1774961439384,-315.0,0.00016,2]
[419155932,1774961439400,-1130.57314431,0.00016,2]
[419155934,1774961439411,-531.13294994,0.00016,2]
[419155937,1774961439423,-1412.62,0.00016,2]
[419155939,1774961439435,-3067.12102734,0.00016,2]
[419155941,1774961439445,-1000.0,0.00016,2]
[419155943,1774961439454,-3530.07897266,0.00016,2]
[419155945,1774961439469,-4020.37096218,0.00016,2]
[419155948,1774961439480,-1560.49579412,0.00016,2]
[419155950,1774961439491,-828.73,0.00016,2]
[419155952,1774961439503,-842.68509257,0.00016,2]
[419155955,1774961439522,-606.81999954,0.00016,2]
[419155957,1774961439533,-353.27693921,0.00016,2]
[419155959,1774961439544,-691.58645727,0.00016,2]
[419155961,1774961439555,-605.72815324,0.00016,2]
[419155963,1774961439567,-2485.97986445,0.00016,2]
[419155966,1774961439578,-500.0,0.00016,2]
[419155970,1774961439605,-4938.94304721,0.00016,2]
[419155972,1774961439616,-81841.56831965,0.00016,2]
[419155974,1774961439625,-2913.35164165,0.00016,2]
[419156072,1774961440555,-1600.0,0.00014082,2]
[419156074,1774961440564,-3448.431529,0.00015763,2]
[419156076,1774961440575,-2564.568471,0.00015763,2]
[419156078,1774961440584,-787.22685126,0.00016,2]
[419156080,1774961440599,-36132.87203757,0.00016,2]
[419156083,1774961440611,-10878.69323138,0.00016,2]
[419156085,1774961440621,-899.72188916,0.00016,2]
[419156087,1774961440633,-596.298,0.00016,2]
[419156091,1774961440660,-9136.69,0.00016,2]
[419156093,1774961440671,-1804.23202008,0.00016,2]
[419156100,1774961440730,-1600.0,0.00015452,2]
[419156102,1774961440740,-41087.53093691,0.00016,2]
[419156103,1774961440750,-150.0,0.00016,2]
[419156105,1774961440759,-403.76821922,0.00016,2]
[419156107,1774961440769,-150.0,0.00016,2]
[419156109,1774961440778,-6606.44252668,0.00016,2]
[419156111,1774961440788,-15000.0,0.00016,2]
[419156112,1774961440798,-144900.62947472,0.00016,2]
[419156114,1774961440807,-322727.53059503,0.00016,2]
[419156116,1774961440816,-158018.80603324,0.00016,2]
[419156117,1774961440825,-250.0,0.00016,5]
[419156118,1774961440835,-250.0,0.00016,5]
[419156119,1774961440845,-250.0,0.00016,5]
[419156121,1774961440855,-151.0,0.00016,2]
[419156122,1774961440864,-151.0,0.00016,2]
[419156123,1774961440873,-200.0,0.00016,2]
[419156124,1774961440883,-151.0,0.00016,2]
[419156125,1774961440892,-500.0,0.00016,2]
[419156126,1774961440901,-500.0,0.00016,2]
[419156127,1774961440911,-500.0,0.00016,2]
[419156128,1774961440921,-500.0,0.00016,2]
[419156129,1774961440930,-151.0,0.00016,2]
[419156130,1774961440940,-1000.0,0.00016,2]
[419156131,1774961440949,-289.50931827,0.00016,2]
[419156132,1774961440959,-289.50931827,0.00016,2]
[419156133,1774961440969,-313.0,0.00016,2]
[419156134,1774961440979,-1726.70125508,0.00016,2]
[419156135,1774961440988,-1726.70125508,0.00016,2]
[419156136,1774961440998,-306.0,0.00016,2]
[419156137,1774961441008,-778.52611775,0.00016,2]
[419156138,1774961441018,-164.27748,0.00016,2]
[419156139,1774961441027,-208.63150306,0.00016,2]
[419156140,1774961441036,-2000.0,0.00016001,2]
[419156141,1774961441046,-352.0,0.00016006,2]
[419156142,1774961441055,-1500.0,0.00016016,2]
[419156143,1774961441065,-500.0,0.00016022,2]
[419156144,1774961441074,-6458.0,0.00016023,2]
[419156145,1774961441083,-740.9,0.00016027,2]
[419156146,1774961441093,-500.0,0.00016039,2]
[419156147,1774961441103,-160.0,0.0001604,2]
[419156148,1774961441112,-352.0,0.00016059,2]
[419156149,1774961441122,-1500.0,0.0001606,2]
[419156150,1774961441131,-1081.99962625,0.0001606,2]
[419156151,1774961441141,-150.17672148,0.00016062,2]
[419156152,1774961441150,-352.0,0.00016077,2]
[419156153,1774961441160,-258.0,0.000161,2]
[419156154,1774961441170,-260.0,0.000161,2]
[419156155,1774961441179,-267.0,0.000161,2]
[419156156,1774961441188,-346.0,0.000161,2]
[419156157,1774961441198,-208.63150306,0.000161,2]
[419156158,1774961441207,-289.29049917,0.00016101,2]
[419156159,1774961441218,-352.0,0.00016101,2]
[419156160,1774961441228,-509.0,0.00016111,2]
[419156161,1774961441238,-9999.99,0.00016116,2]
[419156162,1774961441247,-433.0,0.00016153,2]
[419156163,1774961441256,-2808.0,0.0001616,2]
[419156164,1774961441265,-200.0,0.0001616,2]
[419156165,1774961441275,-1571.0,0.00016162,2]
[419156166,1774961441284,-162.0,0.00016162,2]
[419156167,1774961441293,-1600.0,0.00016164,2]
[419156168,1774961441303,-207.05,0.00016195,2]
[419156169,1774961441312,-5000.00990141,0.000162,5]
[419156170,1774961441322,-164.27749,0.000162,2]
[419156171,1774961441331,-208.63150306,0.000162,2]
[419156172,1774961441340,-2000.0,0.00016218,2]
[419156173,1774961441351,-165.31,0.00016218,17]
[419156174,1774961441360,-500.0,0.00016218,2]
[419156175,1774961441370,-417.0,0.00016222,2]
[419156176,1774961441379,-352.0,0.00016233,2]
[419156177,1774961441389,-1600.0,0.00016248,2]
[419156178,1774961441399,-1378.57,0.00016282,2]
[419156179,1774961441408,-173.9,0.00016287,2]
[419156180,1774961441418,-740.9,0.00016301,2]
[419156181,1774961441427,-2199.03447714,0.00016308,2]
[419156182,1774961441437,-1000.0,0.00016321,2]
[419156183,1774961441446,-356.03578514,0.00016321,2]
[419156184,1774961441455,-501.74712556,0.00016321,2]
[419156185,1774961441465,-555.98551723,0.00016321,2]
[419156186,1774961441474,-1129.66942551,0.00016321,2]
[419156187,1774961441483,-503.93751235,0.00016321,2]
[419156188,1774961441492,-500.0,0.00016321,2]
[419156189,1774961441501,-1000.0,0.00016321,2]
[419156190,1774961441510,-502.01968107,0.00016321,2]
[419156191,1774961441519,-392.10429392,0.00016321,2]
[419156192,1774961441529,-417.0,0.00016325,2]
[419156193,1774961441538,-1958.6199,0.00016352,7]
[419156194,1774961441547,-500.0,0.00016356,2]
[419156195,1774961441557,-4985.0,0.00016357,2]
[419156196,1774961441566,-417.0,0.00016358,2]
[419156197,1774961441576,-707.92,0.00016359,2]
[419156198,1774961441585,-1571.0,0.0001636,2]
[419156199,1774961441594,-2808.0,0.0001636,2]
[419156200,1774961441603,-1571.0,0.0001636,2]
[419156201,1774961441613,-2808.0,0.0001636,2]
[419156202,1774961441623,-352.0,0.00016363,2]
[419156203,1774961441632,-327.08263726,0.00016375,2]
[419156204,1774961441642,-180.0,0.0001638,2]
[419156205,1774961441652,-940.74555,0.00016387,7]
[419156206,1774961441661,-164.27749,0.000164,2]
[419156207,1774961441671,-165.06,0.00016404,16]
[419156208,1774961441680,-165.06,0.00016404,16]
[419156209,1774961441690,-10617.44517809,0.00016409,2]
[419156210,1774961441700,-166.66,0.00016416,2]
[419156211,1774961441710,-352.0,0.0001643,2]
[419156212,1774961441719,-2167.1,0.00016438,2]
[419156213,1774961441729,-1292.97,0.00016438,2]
[419156214,1774961441738,-1001.39,0.00016438,2]
[419156215,1774961441747,-574.81,0.00016438,2]
[419156216,1774961441757,-1017.17,0.00016438,2]
[419156217,1774961441767,-667.8,0.00016438,2]
[419156218,1774961441776,-565.96,0.00016438,2]
[419156219,1774961441786,-692.62,0.00016438,2]
[419156220,1774961441795,-634.11,0.00016438,2]
[419156221,1774961441805,-165.06,0.00016438,20]
[419156222,1774961441814,-621.48,0.00016438,2]
[419156223,1774961441824,-299.86176448,0.00016438,2]
[419156224,1774961441833,-2500.0,0.00016438,2]
[419156225,1774961441842,-1323.44995625,0.00016438,2]
[419156226,1774961441851,-250.0,0.00016438,2]
[419156227,1774961441860,-151.99,0.00016438,2]
[419156228,1774961441870,-150.0,0.00016438,2]
[419156229,1774961441879,-736.39437,0.00016438,2]
[419156230,1774961441888,-736.39437,0.00016438,2]
[419156231,1774961441898,-736.39437,0.00016438,2]
[419156232,1774961441907,-736.39437,0.00016438,2]
[419156233,1774961441917,-736.39437,0.00016438,2]
[419156234,1774961441926,-736.39437,0.00016438,2]
[419156235,1774961441936,-736.39437,0.00016438,2]
[419156236,1774961441945,-736.39437,0.00016438,2]
[419156237,1774961441955,-736.39437,0.00016438,2]
[419156238,1774961441964,-736.39437,0.00016438,2]
[419156239,1774961441974,-736.39437,0.00016438,2]
[419156240,1774961441983,-736.39437,0.00016438,2]
[419156241,1774961441993,-736.39437,0.00016438,2]
[419156242,1774961442002,-736.39437,0.00016438,2]
[419156243,1774961442013,-736.39437,0.00016438,2]
[419156244,1774961442022,-736.39437,0.00016438,2]
[419156245,1774961442032,-736.39437,0.00016438,2]
[419156246,1774961442041,-736.39437,0.00016438,2]
[419156247,1774961442052,-736.39437,0.00016438,2]
[419156248,1774961442061,-736.39438,0.00016438,2]
[419156249,1774961442071,-363.817739,0.00016438,2]
[419156250,1774961442080,-363.817739,0.00016438,2]